[Event "Early-Titled-Tuesday-Blitz-October-17-2023"]
[Site "Chess.com"]
[Date "2023.10.17"]
[Round "6"]
[White "ProfessorChess101"]
[Black "RETURNOFTHELAGGER"]
[Result "1/2-1/2"]
[WhiteElo "2565"]
[BlackElo "2674"]
[TimeControl "180+1"]
[EndTime "9:12:18 PDT"]
[Termination "Game drawn by agreement"]

1. d4 {[%clk 0:03:00.9]} 1... Nf6 {[%clk 0:02:45.6]} 2. c4 {[%clk 0:03:00.7]}
2... g6 {[%clk 0:02:46.5]} 3. Nc3 {[%clk 0:03:00.6]} 3... d5 {[%clk 0:02:46.5]}
4. cxd5 {[%clk 0:02:59.4]} 4... Nxd5 {[%clk 0:02:45.5]} 5. Bd2 {[%clk
0:03:00.1]} 5... Bg7 {[%clk 0:02:32.8]} 6. e4 {[%clk 0:02:58.8]} 6... Nb6 {[%clk
0:02:33.5]} 7. Be3 {[%clk 0:02:58.3]} 7... O-O {[%clk 0:02:34.2]} 8. Be2 {[%clk
0:02:58.6]} 8... Nc6 {[%clk 0:02:30.9]} 9. Nf3 {[%clk 0:02:56.4]} 9... Bg4
{[%clk 0:02:29.8]} 10. d5 {[%clk 0:02:56.5]} 10... Bxf3 {[%clk 0:02:26.9]} 11.
gxf3 {[%clk 0:02:57.4]} 11... Ne5 {[%clk 0:02:26.9]} 12. h4 {[%clk 0:02:50.4]}
12... c6 {[%clk 0:02:20.1]} 13. h5 {[%clk 0:02:48.1]} 13... cxd5 {[%clk
0:02:18]} 14. exd5 {[%clk 0:02:48.9]} 14... Nec4 {[%clk 0:02:14.7]} 15. hxg6
{[%clk 0:02:39.7]} 15... hxg6 {[%clk 0:02:15.6]} 16. Bxb6 {[%clk 0:02:19.3]}
16... Nxb2 {[%clk 0:01:40.2]} 17. Bxd8 {[%clk 0:01:40]} 17... Bxc3+ {[%clk
0:01:39.5]} 18. Kf1 {[%clk 0:01:25]} 18... Nxd1 {[%clk 0:01:39.3]} 19. Bxe7
{[%clk 0:01:18.2]} 19... Bxa1 {[%clk 0:01:38.7]} 20. Bxf8 {[%clk 0:01:17.7]}
20... Nxf2 {[%clk 0:01:36.3]} 21. Kxf2 {[%clk 0:01:12.4]} 21... Bd4+ {[%clk
0:01:34.1]} 22. Kg3 {[%clk 0:01:10.7]} 22... Rxf8 {[%clk 0:01:32]} 23. Rd1
{[%clk 0:01:10.8]} 23... Be5+ {[%clk 0:01:27.9]} 24. Kg2 {[%clk 0:01:07.9]}
24... Rd8 {[%clk 0:01:27.3]} 25. Bc4 {[%clk 0:01:06.6]} 25... Kg7 {[%clk
0:01:19.7]} 26. Re1 {[%clk 0:01:05.6]} 26... Kf6 {[%clk 0:01:19.6]} 27. Rb1
{[%clk 0:01:04.8]} 27... b6 {[%clk 0:01:18.1]} 28. a4 {[%clk 0:01:04.9]} 28...
Rd6 {[%clk 0:01:14]} 29. Rb5 {[%clk 0:00:59]} 29... Kg5 {[%clk 0:01:06.5]} 30.
a5 {[%clk 0:00:57.9]} 30... Kf4 {[%clk 0:01:03.9]} 31. axb6 {[%clk 0:00:51.7]}
31... axb6 {[%clk 0:01:04.8]} 32. Rb4 {[%clk 0:00:42.5]} 32... Bc3 {[%clk
0:00:58.4]} 33. Rb3 {[%clk 0:00:41.5]} 33... Bd4 {[%clk 0:00:58.8]} 34. Rb1
{[%clk 0:00:39.1]} 34... f5 {[%clk 0:00:55.7]} 35. Rb4 {[%clk 0:00:37.4]} 35...
Bc5 {[%clk 0:00:55.1]} 36. Rb1 {[%clk 0:00:36.8]} 36... g5 {[%clk 0:00:53.8]}
37. Re1 {[%clk 0:00:35.8]} 37... Be3 {[%clk 0:00:49.9]} 38. Rb1 {[%clk
0:00:25.7]} 38... Rg6 {[%clk 0:00:41.2]} 39. Rb4 {[%clk 0:00:24.5]} 39... Bc5
{[%clk 0:00:40.6]} 40. Ra4 {[%clk 0:00:24.8]} 40... Ke5 {[%clk 0:00:25.5]} 41.
Ra1 {[%clk 0:00:23.4]} 41... g4 {[%clk 0:00:24]} 42. Re1+ {[%clk 0:00:19.4]}
42... Kd4 {[%clk 0:00:23.3]} 43. Ba2 {[%clk 0:00:19]} 43... b5 {[%clk 0:00:19]}
44. Re6 {[%clk 0:00:18.3]} 44... Rg7 {[%clk 0:00:16.6]} 45. Re1 {[%clk
0:00:11.8]} 45... gxf3+ {[%clk 0:00:14.5]} 46. Kxf3 {[%clk 0:00:11.6]} 46... Bd6
{[%clk 0:00:12.7]} 47. Re6 {[%clk 0:00:10.1]} 47... Kc5 {[%clk 0:00:10.8]} 48.
Re1 {[%clk 0:00:08.8]} 48... Rg3+ {[%clk 0:00:10.9]} 49. Kf2 {[%clk 0:00:09.4]}
49... Ra3 {[%clk 0:00:11.5]} 50. Re2 {[%clk 0:00:08]} 50... Bg3+ {[%clk
0:00:10.3]} 51. Kg2 {[%clk 0:00:07.5]} 51... f4 {[%clk 0:00:10.2]} 52. Rc2+
{[%clk 0:00:04.8]} 52... Kd6 {[%clk 0:00:09.7]} 53. Rc6+ {[%clk 0:00:03.3]}
53... Ke5 {[%clk 0:00:09.3]} 54. Rc2 {[%clk 0:00:03.7]} 54... b4 {[%clk
0:00:06.9]} 55. Rb2 {[%clk 0:00:04.1]} 55... Be1 {[%clk 0:00:04.8]} 56. Re2+
{[%clk 0:00:03.4]} 56... Re3 {[%clk 0:00:03.8]} 57. Rxe3+ {[%clk 0:00:03.2]}
57... fxe3 {[%clk 0:00:04.7]} 58. Kf3 {[%clk 0:00:03.6]} 58... Bd2 {[%clk
0:00:02.8]} 59. Ke2 {[%clk 0:00:04.2]} 59... Kd6 {[%clk 0:00:03.7]} 60. Kd3
{[%clk 0:00:03.4]} 60... Bc1 {[%clk 0:00:04.1]} 61. Bb3 {[%clk 0:00:03.8]} 61...
Bd2 {[%clk 0:00:05]} 62. Ba2 {[%clk 0:00:04.3]} 62... Bc1 {[%clk 0:00:05.4]}
1/2-1/2

[Event "Early-Titled-Tuesday-Blitz-October-17-2023"]
[Site "Chess.com"]
[Date "2023.10.17"]
[Round "6"]
[White "Wizard_97"]
[Black "GMSrinath"]
[Result "0-1"]
[WhiteElo "2579"]
[BlackElo "2852"]
[TimeControl "180+1"]
[EndTime "9:12:20 PDT"]
[Termination "GMSrinath won on time"]

1. e4 {[%clk 0:03:00.3]} 1... c5 {[%clk 0:02:59.4]} 2. Nf3 {[%clk 0:03:00.8]}
2... d6 {[%clk 0:02:56]} 3. d4 {[%clk 0:03:01.3]} 3... cxd4 {[%clk 0:02:56.9]}
4. Nxd4 {[%clk 0:03:01.9]} 4... Nf6 {[%clk 0:02:57.5]} 5. Nc3 {[%clk 0:03:01.6]}
5... Nc6 {[%clk 0:02:57.5]} 6. Bg5 {[%clk 0:03:00.5]} 6... e6 {[%clk 0:02:57.6]}
7. Qd2 {[%clk 0:02:58.2]} 7... a6 {[%clk 0:02:58.1]} 8. O-O-O {[%clk 0:02:54.9]}
8... Be7 {[%clk 0:02:58.7]} 9. f4 {[%clk 0:02:55.5]} 9... Bd7 {[%clk 0:02:57.2]}
10. Qe3 {[%clk 0:02:49.8]} 10... Ng4 {[%clk 0:02:44.9]} 11. Qd2 {[%clk
0:02:14.9]} 11... Bxg5 {[%clk 0:02:24.3]} 12. Nxc6 {[%clk 0:02:13.4]} 12... Bxc6
{[%clk 0:02:11.4]} 13. fxg5 {[%clk 0:02:12.4]} 13... Qe7 {[%clk 0:02:11.2]} 14.
Qxd6 {[%clk 0:01:46.6]} 14... Qxg5+ {[%clk 0:01:56.5]} 15. Qd2 {[%clk
0:01:39.9]} 15... Qxd2+ {[%clk 0:01:49.8]} 16. Rxd2 {[%clk 0:01:39.3]} 16... Ke7
{[%clk 0:01:50.7]} 17. h3 {[%clk 0:01:30.2]} 17... Ne5 {[%clk 0:01:50.3]} 18.
Be2 {[%clk 0:01:28.2]} 18... h5 {[%clk 0:01:49.4]} 19. Re1 {[%clk 0:01:22.8]}
19... h4 {[%clk 0:01:47.7]} 20. Bf3 {[%clk 0:01:18.5]} 20... f6 {[%clk
0:01:44.5]} 21. Ne2 {[%clk 0:01:16.3]} 21... g5 {[%clk 0:01:40.9]} 22. Nd4
{[%clk 0:01:16]} 22... Rhd8 {[%clk 0:01:39.2]} 23. b3 {[%clk 0:01:12.5]} 23...
Be8 {[%clk 0:01:37]} 24. Kb2 {[%clk 0:01:10]} 24... Rd6 {[%clk 0:01:34.2]} 25.
Red1 {[%clk 0:01:08.1]} 25... Rad8 {[%clk 0:01:33.1]} 26. c4 {[%clk 0:01:04.8]}
26... Bg6 {[%clk 0:01:15.1]} 27. Kc3 {[%clk 0:00:47.6]} 27... R6d7 {[%clk
0:00:55.5]} 28. a4 {[%clk 0:00:43.6]} 28... a5 {[%clk 0:00:54.6]} 29. Nb5 {[%clk
0:00:39.2]} 29... Rxd2 {[%clk 0:00:50.8]} 30. Rxd2 {[%clk 0:00:40.1]} 30... Rxd2
{[%clk 0:00:50.9]} 31. Kxd2 {[%clk 0:00:41]} 31... b6 {[%clk 0:00:51.7]} 32. Ke3
{[%clk 0:00:34.1]} 32... Nd7 {[%clk 0:00:50]} 33. Bd1 {[%clk 0:00:30.2]} 33...
Nc5 {[%clk 0:00:49.7]} 34. Bc2 {[%clk 0:00:26.3]} 34... Be8 {[%clk 0:00:44.3]}
35. Nd4 {[%clk 0:00:25.5]} 35... Bd7 {[%clk 0:00:44.2]} 36. Nf3 {[%clk
0:00:18.4]} 36... e5 {[%clk 0:00:37.4]} 37. Ne1 {[%clk 0:00:18.4]} 37... Bc6
{[%clk 0:00:32.7]} 38. Nf3 {[%clk 0:00:15.3]} 38... Ne6 {[%clk 0:00:30.7]} 39.
Nh2 {[%clk 0:00:14.5]} 39... Nf4 {[%clk 0:00:29.9]} 40. Kf3 {[%clk 0:00:14.9]}
40... Ne6 {[%clk 0:00:29.7]} 41. Ke3 {[%clk 0:00:14.6]} 41... Nd4 {[%clk
0:00:30.1]} 42. Bd1 {[%clk 0:00:14.7]} 42... Kd6 {[%clk 0:00:29.6]} 43. Ng4
{[%clk 0:00:14.9]} 43... Ke6 {[%clk 0:00:28.9]} 44. Nh6 {[%clk 0:00:15.2]} 44...
Be8 {[%clk 0:00:24.3]} 45. Bg4+ {[%clk 0:00:12.3]} 45... Kd6 {[%clk 0:00:24.8]}
46. Nf5+ {[%clk 0:00:06.1]} 46... Nxf5+ {[%clk 0:00:25.2]} 47. Bxf5 {[%clk
0:00:05.8]} 47... Kc5 {[%clk 0:00:26.1]} 48. Kd3 {[%clk 0:00:06.2]} 48... Kb4
{[%clk 0:00:26.6]} 49. Kc2 {[%clk 0:00:06.9]} 49... Bc6 {[%clk 0:00:23.9]} 50.
Bg6 {[%clk 0:00:06.3]} 50... Bd7 {[%clk 0:00:21.4]} 51. Bh7 {[%clk 0:00:06.1]}
51... Be8 {[%clk 0:00:22]} 52. Bf5 {[%clk 0:00:06.4]} 52... Bh5 {[%clk
0:00:22.6]} 53. Bg4 {[%clk 0:00:04.9]} 53... Bg6 {[%clk 0:00:14.8]} 54. Bf3
{[%clk 0:00:05.5]} 54... f5 {[%clk 0:00:14.1]} 55. exf5 {[%clk 0:00:05.4]} 55...
Bxf5+ {[%clk 0:00:15]} 56. Kb2 {[%clk 0:00:06]} 56... e4 {[%clk 0:00:14.5]} 57.
Be2 {[%clk 0:00:06.6]} 57... e3 {[%clk 0:00:15.2]} 58. Ka2 {[%clk 0:00:01.6]}
58... Be4 {[%clk 0:00:13.9]} 59. Kb2 {[%clk 0:00:02.1]} 59... Bxg2 {[%clk
0:00:13.9]} 60. Bg4 {[%clk 0:00:01.9]} 60... Bxh3 {[%clk 0:00:12.9]} 0-1

[Event "Early-Titled-Tuesday-Blitz-October-17-2023"]
[Site "Chess.com"]
[Date "2023.10.17"]
[Round "6"]
[White "CSB7"]
[Black "Karttunen"]
[Result "1/2-1/2"]
[WhiteElo "2739"]
[BlackElo "2577"]
[TimeControl "180+1"]
[EndTime "9:12:23 PDT"]
[Termination "Game drawn by repetition"]

1. c4 {[%clk 0:03:00.9]} 1... d6 {[%clk 0:02:59.1]} 2. Nc3 {[%clk 0:02:59.3]}
2... e5 {[%clk 0:02:58.6]} 3. g3 {[%clk 0:02:56.2]} 3... Nf6 {[%clk 0:02:55.7]}
4. Bg2 {[%clk 0:02:55.9]} 4... Nc6 {[%clk 0:02:55.4]} 5. Nf3 {[%clk 0:02:54.8]}
5... g6 {[%clk 0:02:51.5]} 6. d4 {[%clk 0:02:54.7]} 6... exd4 {[%clk 0:02:30]}
7. Nxd4 {[%clk 0:02:55.6]} 7... Nxd4 {[%clk 0:02:30.5]} 8. Qxd4 {[%clk
0:02:55.4]} 8... Bg7 {[%clk 0:02:30.8]} 9. Qe3+ {[%clk 0:02:55.4]} 9... Qe7
{[%clk 0:02:21.9]} 10. Qxe7+ {[%clk 0:02:55]} 10... Kxe7 {[%clk 0:02:22]} 11. b3
{[%clk 0:02:46.1]} 11... Re8 {[%clk 0:02:06.9]} 12. Bb2 {[%clk 0:02:33.4]} 12...
Kf8 {[%clk 0:02:07]} 13. h3 {[%clk 0:02:23.5]} 13... a6 {[%clk 0:01:36.7]} 14.
O-O-O {[%clk 0:02:15.4]} 14... Rb8 {[%clk 0:01:34.9]} 15. e3 {[%clk 0:02:00.8]}
15... b5 {[%clk 0:01:23.1]} 16. Nd5 {[%clk 0:02:00.7]} 16... Nxd5 {[%clk
0:01:19]} 17. Bxg7+ {[%clk 0:02:00.2]} 17... Kxg7 {[%clk 0:01:18.9]} 18. cxd5
{[%clk 0:02:00.4]} 18... Re7 {[%clk 0:00:47.2]} 19. Kb2 {[%clk 0:02:00]} 19...
Kf8 {[%clk 0:00:47.1]} 20. Rd4 {[%clk 0:01:49.8]} 20... Ke8 {[%clk 0:00:45.7]}
21. Rc1 {[%clk 0:01:50.1]} 21... Kd8 {[%clk 0:00:45.7]} 22. Kc3 {[%clk
0:01:42.6]} 22... a5 {[%clk 0:00:43.5]} 23. b4 {[%clk 0:01:39.6]} 23... a4
{[%clk 0:00:42.4]} 24. a3 {[%clk 0:01:39]} 24... Bd7 {[%clk 0:00:41.9]} 25. Kd2
{[%clk 0:01:36.2]} 25... f5 {[%clk 0:00:38.2]} 26. Rd3 {[%clk 0:01:26.1]} 26...
Rb6 {[%clk 0:00:38.2]} 27. Rdc3 {[%clk 0:01:25.9]} 27... Rb7 {[%clk 0:00:38.6]}
28. Kd3 {[%clk 0:01:21.5]} 28... Ra7 {[%clk 0:00:38.6]} 29. Kd4 {[%clk
0:01:21.7]} 29... Rb7 {[%clk 0:00:38.9]} 30. h4 {[%clk 0:01:20.5]} 30... Bc8
{[%clk 0:00:35.9]} 31. Re1 {[%clk 0:00:59.6]} 31... Bd7 {[%clk 0:00:35.2]} 32.
Rc2 {[%clk 0:00:57.6]} 32... Be8 {[%clk 0:00:33.9]} 33. f4 {[%clk 0:00:54.2]}
33... h5 {[%clk 0:00:33.1]} 34. e4 {[%clk 0:00:52.8]} 34... fxe4 {[%clk
0:00:33.2]} 35. Rxe4 {[%clk 0:00:52.7]} 35... Rxe4+ {[%clk 0:00:32.2]} 36. Bxe4
{[%clk 0:00:53.6]} 36... Ke7 {[%clk 0:00:31]} 37. Rf2 {[%clk 0:00:53]} 37... Rb8
{[%clk 0:00:24.3]} 38. f5 {[%clk 0:00:36]} 38... gxf5 {[%clk 0:00:24.6]} 39.
Rxf5 {[%clk 0:00:36]} 39... Bg6 {[%clk 0:00:23.4]} 40. Rg5 {[%clk 0:00:35.8]}
40... Bf7 {[%clk 0:00:22.2]} 41. Bd3 {[%clk 0:00:32.2]} 41... Kf6 {[%clk
0:00:20.4]} 42. Rf5+ {[%clk 0:00:31.6]} 42... Ke7 {[%clk 0:00:20.6]} 43. Be2
{[%clk 0:00:30.7]} 43... Rg8 {[%clk 0:00:14.5]} 44. Rg5 {[%clk 0:00:22.1]} 44...
Rh8 {[%clk 0:00:11.8]} 45. Ke3 {[%clk 0:00:18.8]} 45... Kf6 {[%clk 0:00:11.9]}
46. Kf4 {[%clk 0:00:18]} 46... Re8 {[%clk 0:00:10.3]} 47. Bxb5 {[%clk
0:00:16.4]} 47... Re1 {[%clk 0:00:09.9]} 48. Bxa4 {[%clk 0:00:15.7]} 48... Ra1
{[%clk 0:00:09.6]} 49. Bc6 {[%clk 0:00:10]} 49... Rxa3 {[%clk 0:00:09.4]} 50. b5
{[%clk 0:00:10.2]} 50... Rb3 {[%clk 0:00:09.8]} 51. Rf5+ {[%clk 0:00:09.2]}
51... Kg6 {[%clk 0:00:09.7]} 52. Rg5+ {[%clk 0:00:08.9]} 52... Kf6 {[%clk
0:00:09.7]} 53. g4 {[%clk 0:00:08.2]} 53... Rb4+ {[%clk 0:00:09.5]} 54. Kg3
{[%clk 0:00:08.3]} 54... Rb3+ {[%clk 0:00:09.9]} 55. Kf2 {[%clk 0:00:08.6]}
55... Rb2+ {[%clk 0:00:10.4]} 56. Ke3 {[%clk 0:00:08.8]} 56... Rb3+ {[%clk
0:00:10.2]} 57. Kd2 {[%clk 0:00:08.4]} 57... hxg4 {[%clk 0:00:09.2]} 58. Rxg4
{[%clk 0:00:08.6]} 58... Rh3 {[%clk 0:00:06.4]} 59. Rf4+ {[%clk 0:00:08.1]}
59... Ke7 {[%clk 0:00:06.3]} 60. Re4+ {[%clk 0:00:07.9]} 60... Kf6 {[%clk
0:00:06.6]} 61. Rf4+ {[%clk 0:00:08.2]} 61... Ke7 {[%clk 0:00:07]} 62. Kc1
{[%clk 0:00:07.3]} 62... Bg6 {[%clk 0:00:06.6]} 63. Kb2 {[%clk 0:00:06.2]} 63...
Bf7 {[%clk 0:00:05.5]} 64. Re4+ {[%clk 0:00:06.2]} 64... Kf6 {[%clk 0:00:05.4]}
65. Rf4+ {[%clk 0:00:06.5]} 65... Ke7 {[%clk 0:00:05.6]} 66. Kc2 {[%clk
0:00:05]} 66... Bg6+ {[%clk 0:00:05.3]} 67. Kd2 {[%clk 0:00:05.5]} 67... Bf7
{[%clk 0:00:05.5]} 1/2-1/2

[Event "Early-Titled-Tuesday-Blitz-October-17-2023"]
[Site "Chess.com"]
[Date "2023.10.17"]
[Round "6"]
[White "Nuvas"]
[Black "Lion-Al-Messi"]
[Result "1-0"]
[WhiteElo "2831"]
[BlackElo "2665"]
[TimeControl "180+1"]
[EndTime "9:12:32 PDT"]
[Termination "Nuvas won by checkmate"]

1. d4 {[%clk 0:03:00.9]} 1... d5 {[%clk 0:02:59.4]} 2. c4 {[%clk 0:03:01.2]}
2... c6 {[%clk 0:02:59.8]} 3. Nc3 {[%clk 0:03:01.4]} 3... Nf6 {[%clk 0:03:00.1]}
4. cxd5 {[%clk 0:03:01.9]} 4... cxd5 {[%clk 0:03:00.3]} 5. Bf4 {[%clk
0:03:02.6]} 5... Nc6 {[%clk 0:02:59.9]} 6. e3 {[%clk 0:03:03.1]} 6... Bg4 {[%clk
0:03:00]} 7. Qb3 {[%clk 0:03:02.9]} 7... Na5 {[%clk 0:03:00.1]} 8. Qa4+ {[%clk
0:03:03.1]} 8... Bd7 {[%clk 0:02:59.9]} 9. Qc2 {[%clk 0:03:01]} 9... e6 {[%clk
0:02:57.8]} 10. Bd3 {[%clk 0:02:57.7]} 10... Nc6 {[%clk 0:02:57.5]} 11. a3
{[%clk 0:02:57.6]} 11... Be7 {[%clk 0:02:57.6]} 12. h3 {[%clk 0:02:57.2]} 12...
Rc8 {[%clk 0:02:54.6]} 13. Nf3 {[%clk 0:02:56.8]} 13... a6 {[%clk 0:02:54.2]}
14. O-O {[%clk 0:02:56.7]} 14... b5 {[%clk 0:02:54.5]} 15. Qe2 {[%clk
0:02:56.1]} 15... O-O {[%clk 0:02:53.3]} 16. a4 {[%clk 0:02:56.5]} 16... Nb4
{[%clk 0:02:50.1]} 17. Bb1 {[%clk 0:02:48.1]} 17... bxa4 {[%clk 0:02:48.3]} 18.
Ne5 {[%clk 0:02:48.1]} 18... Be8 {[%clk 0:02:31.9]} 19. Rd1 {[%clk 0:02:38.8]}
19... Qb6 {[%clk 0:02:31.4]} 20. Nxa4 {[%clk 0:02:36.4]} 20... Qb5 {[%clk
0:02:28.4]} 21. Qxb5 {[%clk 0:02:34.9]} 21... Bxb5 {[%clk 0:02:29.3]} 22. Nc3
{[%clk 0:02:33.7]} 22... Bc4 {[%clk 0:02:00.9]} 23. Nxc4 {[%clk 0:02:25.7]}
23... Rxc4 {[%clk 0:02:00.3]} 24. g4 {[%clk 0:02:12.3]} 24... h6 {[%clk
0:02:00]} 25. Bd3 {[%clk 0:01:58.3]} 25... Nxd3 {[%clk 0:01:58.9]} 26. Rxd3
{[%clk 0:01:59.2]} 26... Rc6 {[%clk 0:01:58.6]} 27. Kg2 {[%clk 0:01:37.9]} 27...
g5 {[%clk 0:01:58.1]} 28. Bg3 {[%clk 0:01:36.4]} 28... Rfc8 {[%clk 0:01:58.2]}
29. Ra2 {[%clk 0:01:24.7]} 29... Bb4 {[%clk 0:01:55.1]} 30. Na4 {[%clk 0:01:08]}
30... Ne4 {[%clk 0:01:52]} 31. Rb3 {[%clk 0:01:06.9]} 31... a5 {[%clk
0:01:51.2]} 32. Nc3 {[%clk 0:00:24.2]} 32... Nxc3 {[%clk 0:01:46.8]} 33. bxc3
{[%clk 0:00:24.3]} 33... Rxc3 {[%clk 0:01:41.3]} 34. Rbb2 {[%clk 0:00:24.4]}
34... Kg7 {[%clk 0:01:35.8]} 35. h4 {[%clk 0:00:24.3]} 35... gxh4 {[%clk
0:01:34.4]} 36. Bxh4 {[%clk 0:00:24.4]} 36... Kg6 {[%clk 0:01:35]} 37. Bg3
{[%clk 0:00:24.8]} 37... h5 {[%clk 0:01:34.6]} 38. gxh5+ {[%clk 0:00:24.7]}
38... Kxh5 {[%clk 0:01:35.5]} 39. Kf3 {[%clk 0:00:25.2]} 39... Kg6 {[%clk
0:01:34]} 40. Kg4 {[%clk 0:00:24.1]} 40... Rc1 {[%clk 0:01:32.7]} 41. Kf3 {[%clk
0:00:21.6]} 41... Kf5 {[%clk 0:01:28.1]} 42. Bf4 {[%clk 0:00:20.6]} 42... Rh8
{[%clk 0:01:15.8]} 43. Be5 {[%clk 0:00:17.6]} 43... Rh3+ {[%clk 0:01:10.5]} 44.
Kg2 {[%clk 0:00:17.7]} 44... Rhh1 {[%clk 0:01:10.6]} 45. Rc2 {[%clk 0:00:16.4]}
45... Rcd1 {[%clk 0:01:05]} 46. Kf3 {[%clk 0:00:14.8]} 46... Rh3+ {[%clk
0:01:01.8]} 47. Bg3 {[%clk 0:00:14.2]} 47... Rhh1 {[%clk 0:00:50.9]} 48. Rc7
{[%clk 0:00:13.9]} 48... f6 {[%clk 0:00:49.3]} 49. Rac2 {[%clk 0:00:11.5]} 49...
a4 {[%clk 0:00:39.8]} 50. Rf7 {[%clk 0:00:11.3]} 50... a3 {[%clk 0:00:33.6]} 51.
Ra7 {[%clk 0:00:10.7]} 51... Rc1 {[%clk 0:00:31.8]} 52. Re2 {[%clk 0:00:09.9]}
52... Rhe1 {[%clk 0:00:28.9]} 53. Ra2 {[%clk 0:00:08.9]} 53... Rc3 {[%clk
0:00:28.2]} 54. Kg2 {[%clk 0:00:08.3]} 54... Rb1 {[%clk 0:00:27.5]} 55. Re2
{[%clk 0:00:08.2]} 55... Rcb3 {[%clk 0:00:25.3]} 56. Rc2 {[%clk 0:00:08]} 56...
R3b2 {[%clk 0:00:24.4]} 57. Rc8 {[%clk 0:00:05.1]} 57... a2 {[%clk 0:00:24]} 58.
Rca8 {[%clk 0:00:05.7]} 58... Bd2 {[%clk 0:00:17.2]} 59. Kf3 {[%clk 0:00:06]}
59... Bxe3 {[%clk 0:00:15.3]} 60. Rxa2 {[%clk 0:00:05.2]} 60... Bxd4 {[%clk
0:00:13.6]} 61. R2a4 {[%clk 0:00:05.5]} 61... Rb3+ {[%clk 0:00:13.4]} 62. Kg2
{[%clk 0:00:05.6]} 62... Be5 {[%clk 0:00:14]} 63. Bxe5 {[%clk 0:00:05.9]} 63...
fxe5 {[%clk 0:00:14.9]} 64. Rf8+ {[%clk 0:00:06.1]} 64... Kg6 {[%clk 0:00:14.9]}
65. Rg4+ {[%clk 0:00:06.7]} 65... Kh7 {[%clk 0:00:12.3]} 66. Rf7+ {[%clk
0:00:07.2]} 66... Kh6 {[%clk 0:00:12.1]} 67. Rf6+ {[%clk 0:00:07.8]} 67... Kh5
{[%clk 0:00:12.6]} 68. Rg8 {[%clk 0:00:08.4]} 68... Rb7 {[%clk 0:00:09.9]} 69.
Rxe6 {[%clk 0:00:08]} 69... Re1 {[%clk 0:00:10.4]} 70. Reg6 {[%clk 0:00:05.5]}
70... Rf7 {[%clk 0:00:08.9]} 71. Rg3 {[%clk 0:00:05.7]} 71... Rh7 {[%clk
0:00:01]} 72. Rh3# {[%clk 0:00:05.7]} 1-0